[Event "44th Chess Olympiad Open 2022"]
[Site "Chennai"]
[Date "2022.08.07"]
[Round "9.31"]
[White "Docx, Stefan"]
[Black "Guzman, Christopher"]
[Result "1-0"]
[WhiteElo "2434"]
[BlackElo "2243"]
[Annotator "TA"]
[PlyCount "47"]
[EventDate "2022.??.??"]
[TimeControl "60"]

{[%evp 15,47,-13,10,13,25,17,54,66,98,103,92,100,108,104,107,106,105,114,108,
114,113,120,108,112,222,227,270,271,445,445,445,445,438,434]} 1. d4 {[%emt 0:
00:00]} Nf6 {[%emt 0:00:28]} 2. c4 {[%emt 0:00:08]} e6 {[%emt 0:01:06]} 3. g3 {
[%emt 0:03:11]} d5 {[%emt 0:02:14]} 4. Bg2 {[%emt 0:00:11]} dxc4 {[%emt 0:00:
00]} 5. Nf3 {[%emt 0:04:39]} c5 {[%emt 0:00:22]} 6. O-O {[%emt 0:01:22]} Nc6 {
[%emt 0:00:29]} 7. Na3 {[%emt 0:02:16]} cxd4 {[%emt 0:01:00]} 8. Nxc4 {[%emt 0:
00:00]} Be7 {[%emt 0:01:34]} 9. b3 {[%emt 0:02:41] E04: Open Catalan: 5 Nf3.}
O-O {[%emt 0:00:07]} 10. Bb2 {[%emt 0:00:07][%cal Rf3d4]} Nd5 {[%emt 0:08:36]}
11. Nxd4 {[%emt 0:01:54] White is slightly better.} Nxd4 {[%emt 0:00:10]} 12.
Qxd4 {[%emt 0:04:04][%csl Gb2][%cal Rd4g7]} Bf6 {[%emt 0:00:37]} 13. Qd2 {
[%emt 0:00:15] White is more active.} Bxb2 {[%emt 0:00:27]} 14. Qxb2 {[%emt 0:
00:00]} b5 {[%emt 0:01:15] [#]} 15. Rfd1 $1 {[%emt 0:33:56]} bxc4 {[%emt 0:00:
00]} 16. bxc4 {[%emt 0:00:13][%cal Yb3c4,Yc4d5,Yd5e6,Ye6e7]} Qb6 {[%emt 0:08:
34] [#]} 17. Qa3 {[%emt 0:00:17] [#]} Qa6 $146 {[%emt 0:06:48]} ({Predecessor:
} 17... Nc7 18. Rab1 Qa6 19. Qe7 Nd5 20. cxd5 Qxe2 21. dxe6 Qxe6 22. Qc7 {
1-0 (22) Adamski,J (2410)-Barskij,V (2320) Warsaw 1993}) 18. Qxa6 {[%emt 0:01:
42]} Bxa6 {[%emt 0:00:04]} 19. cxd5 {[%emt 0:00:07]} Bxe2 {[%emt 0:00:00] [#]}
(19... exd5 $16 20. e3 (20. Bxd5 Bxe2 21. Re1 Rae8 $16) (20. Rxd5 Rad8 $16)
20... Rfd8) 20. Re1 $1 $18 {[%emt 0:03:51]} Bc4 {[%emt 0:00:33]} 21. dxe6 {
[%emt 0:00:11]} Rac8 $2 {[%emt 0:00:58]} (21... Bxe6 22. Bxa8 Rxa8) 22. e7 {
[%emt 0:00:11] White is clearly winning.} Rfe8 {[%emt 0:00:01]} 23. Bh3 {
[%emt 0:01:40] Prevents Be6.} Be6 {[%emt 0:00:35]} 24. Rxe6 {[%emt 0:00:09]
White took control after the opening. Weighted Error Value: White=0.00 
(flawless) /Black=0.33} 1-0

[Event "44th Chess Olympiad Open 2022"]
[Site "Chennai"]
[Date "2022.08.07"]
[Round "9.31"]
[White "Munoz Santana, Jose Lisandro"]
[Black "Dardha, Daniel"]
[Result "0-1"]
[WhiteElo "2423"]
[BlackElo "2575"]
[Annotator "TA"]
[PlyCount "82"]
[EventDate "2022.??.??"]
[TimeControl "60"]

{[%evp 18,82,26,18,30,29,40,29,61,41,115,25,39,27,39,40,42,12,33,0,0,0,0,0,60,
48,40,-19,-29,-64,-25,-67,-87,-97,0,-28,0,-28,0,-58,-46,-10,0,0,0,0,0,0,0,0,0,
0,0,-365,-365,-357,-357,-354,-329,-338,-318,-1170,-1154,-1057,-713,-1021,-695]
} 1. e4 {[%emt 0:00:02]} c5 {[%emt 0:00:16]} 2. Nf3 {[%emt 0:00:08]} d6 {
[%emt 0:00:19]} 3. d4 {[%emt 0:00:10]} Nf6 {[%emt 0:00:18]} 4. Nc3 {[%emt 0:00:
00]} cxd4 {[%emt 0:00:09]} 5. Nxd4 {[%emt 0:00:06]} Nc6 {[%emt 0:00:07]} 6. Bg5
{[%emt 0:00:14]} a6 {[%emt 0:01:35]} 7. Qd2 {[%emt 0:01:20]} e6 {[%emt 0:00:27]
} 8. O-O-O {[%emt 0:01:42]} Bd7 {[%emt 0:00:04]} 9. f3 {[%emt 0:00:43]} Nxd4 {
[%emt 0:01:13]} 10. Qxd4 {[%emt 0:00:05]} Be7 {[%emt 0:00:05] B67: Sicilian:
Richter-Rauzer: 7...a6 8 0-0-0 Bd7, lines without 9 f4 Be7.} 11. Kb1 {[%emt 0:
00:00]} Qc7 {[%emt 0:02:10]} 12. g4 {[%emt 0:03:40][%cal Yg2g4,Yg4g5]} b5 {
[%emt 0:01:03] White has an edge.} 13. Be3 {[%emt 0:07:55] [#]} b4 $146 {
[%emt 0:05:03]} (13... O-O $14) ({Predecessor:} 13... O-O 14. g5 Nh5 15. Qd2
Rfd8 16. Bh3 g6 17. Bg4 Ng7 18. h4 b4 19. Ne2 d5 {1-0 (28) Smirin,I (2614)
-Rechlis,G (2513) Jerusalem 2021}) 14. Ne2 {[%emt 0:04:52]} (14. Qxb4 $16 {
next Qb6 is good for White.} h6 15. Qb6 Qxb6 16. Bxb6) 14... O-O $11 {[%emt 0:
00:00]} 15. g5 {[%emt 0:01:36]} Rfc8 $1 {[%emt 0:01:41]} 16. Qd2 {[%emt 0:00:
00]} Ne8 {[%emt 0:02:48]} 17. Nd4 {[%emt 0:08:11]} d5 {[%emt 0:08:45]} 18. e5 {
[%emt 0:04:26]} (18. exd5 {keeps more tension.} e5 19. Nc6 Bxc6 20. dxc6 Qxc6
21. Bh3) 18... Bc5 {[%emt 0:16:41]} (18... Qxe5 $2 19. Bf4 Bxg5 20. Bxg5 $18 (
20. Bxe5 Bxd2 21. Rxd2 f6 $18)) 19. f4 {[%emt 0:03:50]} Qb6 {[%emt 0:00:56]}
20. Rg1 {[%emt 0:26:51]} Nc7 {[%emt 0:01:50]} (20... g6 $11) 21. Rg3 $1 $14 {
[%emt 0:00:03]} Bb5 {[%emt 0:10:05]} 22. Nb3 {[%emt 0:20:20]} (22. Bh3 $14)
22... Bxe3 $11 {[%emt 0:01:52]} 23. Rxe3 {[%emt 0:08:38]} Bc4 {[%emt 0:09:49]}
24. Rh3 {[%emt 0:07:29]} Nb5 {[%emt 0:02:54]} 25. Bd3 {[%emt 0:00:00]} g6 {
[%emt 0:05:21]} ({Black should play} 25... Bxd3 $1 $17 26. Qxd3 g6) 26. Qe1 {
[%emt 0:00:00]} Bxd3 {[%emt 0:00:17]} 27. cxd3 {[%emt 0:00:00]} Qd8 {[%emt 0:
00:00]} 28. Rh6 {[%emt 0:00:00]} (28. Qxb4 $11 Rab8 29. Qd2) 28... Qc7 $15 {
[%emt 0:04:08]} 29. Rc1 {[%emt 0:00:00] Inhibits Qc2+.} Qb6 {[%emt 0:00:26]}
30. Rd1 {[%emt 0:15:20]} Kg7 {[%emt 0:13:51] Strongly threatening ...a5.} 31.
d4 {[%emt 0:01:36]} Rc4 {[%emt 0:01:23]} 32. Rd3 {[%emt 0:02:36] aiming for
Qh4.} Rh8 {[%emt 0:01:13]} (32... Nxd4 $2 33. Nxd4 Rac8 34. Ne2 $18) 33. Qh4 $1
{[%emt 0:00:00] Threatens to win with Rh3.} Nc3+ $1 {[%emt 0:04:02]} 34. bxc3 {
[%emt 0:00:00]} bxc3 {[%emt 0:00:00]} 35. Rh3 $2 {[%emt 0:00:00]} (35. Kc2 $11
{and White has nothing to worry.} Ra4 36. Kd1 (36. Rxc3 Rxa2+ 37. Kb1 Ra3 $11)
36... Rxa2 37. Rxc3 (37. Nc1 $2 Rg2 $19)) 35... c2+ $19 {[%emt 0:00:00]} 36.
Kc1 {[%emt 0:00:00][%cal Rh6h7] [#]} Qb4 $1 {[%emt 0:00:09]} 37. Rxh7+ {
[%emt 0:00:00] [#]} Kf8 $1 {[%emt 0:00:18] Chess con chili.} 38. Rxh8+ {
[%emt 0:00:00]} Ke7 {[%emt 0:00:00] ( -> ...Qa3+)} 39. Rc3 $2 {[%emt 0:00:00]}
(39. Qf2 Qa3+ 40. Kd2 c1=Q+ 41. Nxc1 Qxc1+ 42. Kd3) 39... Rxc3 {[%emt 0:01:10]
Black is clearly winning.} 40. Qe1 {[%emt 0:00:00]} Qa3+ {[%emt 0:00:26]} ({
And not} 40... Rxb3 41. Qxb4+ Rxb4 42. Ra8 $11) 41. Kd2 {[%emt 0:16:44]} c1=Q+
{[%emt 0:00:12] Back Rank. Weighted Error Value: White=0.59/Black=0.12 (very
precise)} 0-1

[Event "44th Chess Olympiad Open 2022"]
[Site "Chennai"]
[Date "2022.08.07"]
[Round "9.31"]
[White "Lenaerts, Lennert"]
[Black "Mazara Ruiz, Adan Manuel"]
[Result "1/2-1/2"]
[WhiteElo "2379"]
[BlackElo "2286"]
[Annotator "RC"]
[PlyCount "94"]
[EventDate "2022.??.??"]
[TimeControl "60"]

1. d4 {[%emt 0:00:03]} Nf6 {[%emt 0:00:20]} 2. c4 {[%emt 0:00:06]} e6 {[%emt 0:
00:00]} 3. Nc3 {[%emt 0:00:04]} Bb4 {[%emt 0:01:28]} 4. Qc2 {[%emt 0:00:38]}
O-O {[%emt 0:00:27]} 5. Nf3 {[%emt 0:01:22]} d6 {[%emt 0:01:53]} 6. Bd2 {
[%emt 0:03:55]} Nc6 {[%emt 0:08:15]} 7. a3 {[%emt 0:00:50]} Bxc3 {[%emt 0:00:
00]} 8. Bxc3 {[%emt 0:00:05]} Qe7 {[%emt 0:03:46]} 9. b4 {[%emt 0:07:38]} e5 {
[%emt 0:11:13]} 10. d5 {[%emt 0:02:45]} Nb8 {[%emt 0:00:19]} 11. e3 {[%emt 0:
00:00]} a5 {[%emt 0:00:18]} 12. Be2 {[%emt 0:04:42]} axb4 {[%emt 0:07:54]} 13.
axb4 {[%emt 0:01:49]} Rxa1+ {[%emt 0:00:03]} 14. Bxa1 {[%emt 0:00:06]} b5 {
[%emt 0:14:57]} 15. O-O {[%emt 0:01:57]} bxc4 {[%emt 0:01:06]} 16. Bxc4 {
[%emt 0:00:28]} Bb7 {[%emt 0:01:43]} 17. e4 {[%emt 0:02:17]} c6 {[%emt 0:04:11]
} 18. dxc6 {[%emt 0:13:43]} Bxc6 {[%emt 0:01:52]} 19. Nd2 {[%emt 0:00:05]} Qb7
{[%emt 0:05:51]} 20. b5 {[%emt 0:03:26]} Bxe4 {[%emt 0:02:18]} 21. Nxe4 {
[%emt 0:00:06]} Nxe4 {[%emt 0:06:55]} 22. Rd1 {[%emt 0:00:51]} Rc8 {[%emt 0:00:
00]} 23. Qe2 {[%emt 0:00:19]} Qc7 {[%emt 0:02:04]} 24. Bxf7+ {[%emt 0:02:15]}
Qxf7 {[%emt 0:00:57]} 25. Qxe4 {[%emt 0:00:06]} Qb3 {[%emt 0:01:51]} 26. Qg4 {
[%emt 0:03:20]} Nd7 {[%emt 0:01:12]} 27. h3 {[%emt 0:02:04]} Ra8 {[%emt 0:00:
00]} 28. Rc1 {[%emt 0:07:25]} Nf6 {[%emt 0:02:05]} 29. Rc8+ {[%emt 0:00:51]}
Rxc8 {[%emt 0:00:01]} 30. Qxc8+ {[%emt 0:00:04]} Kf7 {[%emt 0:00:08]} 31. Qc7+
{[%emt 0:01:05]} Ke6 {[%emt 0:00:43]} 32. b6 {[%emt 0:09:28]} Nd7 {[%emt 0:00:
00]} 33. b7 {[%emt 0:02:19]} Qb1+ {[%emt 0:00:45]} 34. Kh2 {[%emt 0:00:01]}
Qxa1 {[%emt 0:00:12]} 35. Qd8 {[%emt 0:00:26]} Qa4 {[%emt 0:01:18]} 36. Qg8+ {
[%emt 0:04:32]} Kf6 {[%emt 0:00:50]} 37. Qd8+ {[%emt 0:00:05]} Kf7 {[%emt 0:00:
00]} 38. Qc7 {[%emt 0:04:16]} Qb5 {[%emt 0:01:27]} 39. b8=Q {[%emt 0:01:19]}
Qxb8 {[%emt 0:00:07]} 40. Qxd7+ {[%emt 0:00:04]} Kf6 {[%emt 0:00:50]} 41. g4 {
[%emt 0:30:06]} h6 {[%emt 0:32:11]} 42. h4 {[%emt 0:02:12]} g6 {[%emt 0:00:00]}
43. Kg2 {[%emt 0:00:00]} Qf8 {[%emt 0:00:00]} 44. Kg3 {[%emt 0:00:00]} Qe7 {
[%emt 0:00:00]} 45. Qc6 {[%emt 0:00:00]} Kg7 {[%emt 0:00:00]} 46. f3 {[%emt 0:
00:00]} Kf6 {[%emt 0:00:00]} 47. Qa8 {[%emt 0:00:00]} Kg7 {[%emt 0:00:00]}
1/2-1/2

[Event "44th Chess Olympiad Open 2022"]
[Site "Chennai"]
[Date "2022.08.07"]
[Round "9.31"]
[White "Arvelo Leo, Gian Carlo"]
[Black "Maerevoet, Sim"]
[Result "1/2-1/2"]
[WhiteElo "2176"]
[BlackElo "2409"]
[Annotator "TA"]
[PlyCount "147"]
[EventDate "2022.??.??"]
[TimeControl "60"]

{[%evp 11,147,2,16,0,0,0,8,-17,0,0,10,0,0,-5,0,0,0,-14,-18,-35,-31,-25,-10,-30,
-14,-46,-41,-46,-38,-44,-43,-42,-27,-50,-47,-48,-45,-72,-40,-37,-50,-72,-34,
-31,-33,-18,-4,-4,37,35,32,34,27,40,35,33,40,33,33,0,0,-129,-125,-116,2,0,83,
86,73,22,39,24,28,47,56,60,61,0,0,0,8,-15,-16,-14,0,0,0,-12,0,0,0,-18,-8,-8,-8,
-8,-8,-8,0,0,0,-50,-50,-54,-49,-118,-74,-74,-75,-75,-8,-16,-8,-8,0,-8,0,0,0,-8,
0,0,0,-8,-8,-8,-8,-8,-8,-8,8,0,0,-8,8,8,8,8]} 1. Nf3 {[%emt 0:00:07]} d5 {
[%emt 0:00:08]} 2. g3 {[%emt 0:00:15]} g6 {[%emt 0:00:15]} 3. Bg2 {[%emt 0:00:
00]} Bg7 {[%emt 0:00:06]} 4. d4 {[%emt 0:01:06]} c6 {[%emt 0:00:05]} 5. O-O {
[%emt 0:00:13]} Nf6 {[%emt 0:00:35]} 6. c3 {[%emt 0:03:34]} O-O {[%emt 0:02:52]
} 7. Bf4 {[%emt 0:01:24] D02:1 d4 d5 2 Nf3 sidelines, including 2...Nf6 3 g3
and 2...Nf6 3 Bf4.} Nh5 {[%emt 0:04:51]} 8. Bc1 {[%emt 0:03:30] [#]} Nd7 $146 {
[%emt 0:02:30]} ({Predecessor:} 8... Bf5 9. Nbd2 Nd7 10. h3 Nhf6 11. g4 Be4 12.
Nxe4 Nxe4 13. Ng5 Nxg5 14. Bxg5 h6 {0-1 (48) Rausch,E (1738)-Hommel,N (2065)
Berlin 2019}) 9. Na3 {[%emt 0:02:51]} Nb6 {[%emt 0:10:35]} 10. Re1 {[%emt 0:00:
00]} Bf5 {[%emt 0:04:10]} 11. Nh4 {[%emt 0:03:20]} Bg4 {[%emt 0:03:18]} 12. h3
{[%emt 0:15:25]} Be6 {[%emt 0:05:29]} 13. Nf3 {[%emt 0:01:35]} Nf6 {[%emt 0:00:
00]} 14. Bf4 {[%emt 0:01:47]} Qc8 {[%emt 0:02:04]} (14... Ne4 {seems wilder.}
15. h4 Re8 16. Ng5 Bf5) 15. Kh2 {[%emt 0:08:41]} Ne4 {[%emt 0:02:22]} 16. Rf1 {
[%emt 0:03:54]} h6 {[%emt 0:13:07]} 17. Nd2 {[%emt 0:13:18]} Nd6 {[%emt 0:00:
00]} 18. Re1 {[%emt 0:05:31]} g5 {[%emt 0:02:59]} 19. Be5 {[%emt 0:03:30]} f6 {
[%emt 0:00:34]} 20. Bxd6 {[%emt 0:00:14]} exd6 {[%emt 0:00:07]} 21. e4 {
[%emt 0:00:31]} dxe4 {[%emt 0:04:24]} 22. Nxe4 {[%emt 0:00:00]} Qd7 {[%emt 0:
00:00]} 23. Nd2 {[%emt 0:03:21][%cal Ye4d2,Yd2f3,Yf3d4]} f5 {[%emt 0:00:00]}
24. Nf3 {[%emt 0:03:41]} Nd5 {[%emt 0:04:52]} 25. c4 {[%emt 0:02:37]} Nf6 26.
d5 {[%emt 0:02:15]} cxd5 {[%emt 0:02:04]} 27. Nd4 {[%emt 0:00:00]} Bf7 {
[%emt 0:05:05]} 28. cxd5 {[%emt 0:04:06]} Nxd5 {[%emt 0:00:33]} ({Don't do} 
28... Bxd5 29. Bxd5+ Nxd5 30. Qb3 $16 (30. Ne6 Ne7 $16)) 29. Ne6 {[%emt 0:00:
00]} Nf6 {[%emt 0:00:00]} 30. Nxf8 {[%emt 0:00:20]} Rxf8 {[%emt 0:00:00]} 31.
Rc1 {[%emt 0:03:26]} Ne4 {[%emt 0:00:19]} 32. Re2 {[%emt 0:00:15]} d5 {[%emt 0:
00:00]} (32... Bxa2 $2 33. b3 $18) 33. Qd3 {[%emt 0:02:02]} Qd6 {[%emt 0:02:39]
} 34. Nb5 {[%emt 0:00:22][%csl Ya7,Yd6]} Qb6 {[%emt 0:01:22]} 35. Rcc2 {
[%emt 0:00:48]} d4 {[%emt 0:05:07]} 36. b4 {[%emt 0:03:26] Prevents Nc5.} (36.
Bxe4 $11 fxe4 37. Rxe4) 36... a6 $17 {[%emt 0:02:37]} 37. Nc7 {[%emt 0:01:49]}
Nc3 {[%emt 0:01:26]} ({Worse is} 37... Qxb4 38. Bxe4 fxe4 39. Qxe4) (37... Be5
$1 $17 38. Bxe4 fxe4 39. Rxe4 Bxc7) 38. Re7 $11 {[%emt 0:07:00]} Qxb4 {[%emt 0:
00:00]} (38... Qd6 $2 39. Rxf7 $1 Rxf7 40. Rxc3 Rxc7 41. Rxc7 Qxc7 42. Qxf5 $18
) (38... Kh8 $1 $11) 39. Rd7 $16 {[%emt 0:00:00] Hoping for Bd5.} Qa5 {[%emt 0:
00:00] [#] Prevents Bd5.} (39... Bxa2 40. Rxa2 $1 Rf7 41. Rxf7 Kxf7 42. Qxf5+
Kg8 43. Qe6+ Kh7 44. Nd5 $18) 40. Rb2 {[%emt 0:00:00]} (40. Nd5 $1 $16 Kh8 41.
Nxc3 dxc3 42. Bxb7 (42. Rxb7 Kg8 $16)) 40... b6 $1 $11 {[%emt 0:00:00]} 41.
Qxa6 {[%emt 0:09:17]} Qxa6 {[%emt 0:06:35]} 42. Nxa6 {[%emt 0:00:00]} b5 {
[%emt 0:00:34]} 43. Nc7 {[%emt 0:03:38] Against Be6} Bc4 {[%emt 0:00:00]
Prevents Bf1.} 44. Nd5 {[%emt 0:04:08]} (44. Bc6 $14) 44... Rf7 {[%emt 0:00:00]
} 45. Rd8+ {[%emt 0:01:27]} Kh7 {[%emt 0:00:54]} 46. Nxc3 {[%emt 0:01:06]} (46.
Nb6 $5 {[%cal Rb6c4]}) 46... dxc3 {[%emt 0:00:06]} 47. Rc2 {[%emt 0:00:00]} Bf6
{[%emt 0:01:53] Black has compensation.} 48. Rd6 {[%emt 0:00:00]} Be5 {[%emt 0:
00:42]} 49. Rd8 {[%emt 0:00:16]} Bf6 {[%emt 0:01:30] This bishop pair is nice.}
50. Rd6 {[%emt 0:00:25]} Be5 {[%emt 0:00:42]} 51. Rd8 {[%emt 0:00:37]} Ra7 {
[%emt 0:03:08] White must now prevent ...b4.} 52. Bd5 $1 {[%emt 0:01:10]} Bf6
$1 $36 {[%emt 0:00:09] White is under pressure.} 53. Bxc4 {[%emt 0:01:19]} Bxd8
{[%emt 0:00:06]} 54. Bxb5 {[%emt 0:00:07] Endgame KRB-KRB} Kg7 {[%emt 0:00:38]}
55. Rxc3 {[%emt 0:00:41]} Rxa2 {[%emt 0:00:08]} 56. Re3 {[%emt 0:00:36]} (56.
Kg2 $11) 56... Rxf2+ $15 {[%emt 0:00:52]} 57. Kh1 $1 {[%emt 0:00:33]} f4 {
[%emt 0:04:24]} 58. Re2 {[%emt 0:03:11]} (58. Rd3 $15) 58... Rf3 {[%emt 0:03:
40]} 59. gxf4 {[%emt 0:00:00]} Rxh3+ {[%emt 0:01:53]} 60. Kg2 {[%emt 0:00:00] 
[#]} g4 {[%emt 0:01:26]} ({Better is} 60... Rb3 $1 $17 {[%cal Rb3b5]} 61. fxg5
Rxb5 62. gxh6+ Kxh6) 61. Rd2 $11 {[%emt 0:01:44] The position is equal.} Ba5 {
[%emt 0:00:54]} 62. Rd3 {[%emt 0:00:19]} Rh4 {[%emt 0:00:58]} 63. Be8 {[%emt 0:
02:35]} Kf8 {[%emt 0:00:00]} 64. Bg6 {[%emt 0:01:08]} Kg7 {[%emt 0:00:13]} 65.
Be8 {[%emt 0:00:03]} Kf8 {[%emt 0:00:40]} 66. Bg6 {[%emt 0:00:04]} Ke7 {
[%emt 0:01:00]} 67. Rd5 {[%emt 0:00:48]} Bc7 {[%emt 0:01:16]} 68. Rh5 {[%emt 0:
00:10]} Rxh5 {[%emt 0:00:00]} 69. Bxh5 {[%emt 0:00:09]} Bxf4 {[%emt 0:00:05]}
70. Bxg4 {[%emt 0:00:05] KB-KB} Bg3 {[%emt 0:00:09]} 71. Bh5 {[%emt 0:00:06]}
Bf4 {[%emt 0:00:10]} 72. Bf3 {[%emt 0:00:05]} Bg3 {[%emt 0:00:10]} 73. Kxg3 {
[%emt 0:00:10]} h5 {[%emt 0:00:04]} 74. Bxh5 {[%emt 0:00:37] Weighted Error
Value: White=0.13 (very precise) /Black=0.14 (very precise)} 1/2-1/2

[Event "44th Chess Olympiad Open 2022"]
[Site "Chennai"]
[Date "2022.08.07"]
[Round "9.32"]
[White "Cardoso Cardoso, Jose Gabriel"]
[Black "Berend, Fred"]
[Result "1-0"]
[WhiteElo "2493"]
[BlackElo "2307"]
[Annotator "TA"]
[PlyCount "115"]
[EventDate "2022.??.??"]
[TimeControl "60"]

{[%evp 16,115,0,0,18,7,18,0,0,0,10,0,0,7,7,-26,0,-21,-16,-15,-2,0,0,-30,-13,
-70,-49,-83,-59,-61,-47,-82,-24,-31,0,0,0,0,0,-112,-70,-92,-77,-191,2,26,93,86,
450,430,430,420,377,405,432,396,483,461,716,737,1201,1274,12837,12832,1979,
1459,12840,12838,12841,12841,12841,12842,12840,12840,12845,12846,12846,12847,
12847,12847,12848,12848,12849,12849,12850,27999,27999,27999,27999,27999,27999,
27999,27999,27999,27999,27999,27997,27999,27996,27999,27998,27998]} 1. e4 {
[%emt 0:00:03]} e6 {[%emt 0:00:13]} 2. d4 {[%emt 0:00:16]} d5 {[%emt 0:00:04]}
3. Nc3 {[%emt 0:00:10]} Bb4 {[%emt 0:00:06]} 4. e5 {[%emt 0:00:14]} c5 {
[%emt 0:00:06]} 5. a3 {[%emt 0:00:10]} Bxc3+ {[%emt 0:00:03]} 6. bxc3 {[%emt 0:
00:00]} Ne7 {[%emt 0:00:06]} 7. Qg4 {[%emt 0:00:45]} Qc7 {[%emt 0:00:16]} 8.
Bd3 {[%emt 0:00:17]} c4 {[%emt 0:01:12]} 9. Be2 {[%emt 0:01:26]} (9. Qxg7 $2
Rg8 10. Qxh7 cxd3 11. Qxd3 Rxg2 $19) 9... Qa5 {[%emt 0:00:29] C18: French: 3
Nc3 Bb4: Main line: 7 h4 and 7 Qg4.} 10. Bd2 {[%emt 0:01:59]} (10. Qxg7 $2
Qxc3+ 11. Bd2 (11. Kf1 $2 Rg8 $19) 11... Qxa1+ $19) 10... Nf5 {[%emt 0:00:18]}
11. Nh3 {[%emt 0:03:24] 11.h4 gains popularity.} Nc6 {[%emt 0:06:20] The
position is equal.} 12. Nf4 {[%emt 0:01:42]} Bd7 {[%emt 0:02:17]} 13. Nh5 {
[%emt 0:06:51]} O-O-O {[%emt 0:08:30] [#]} 14. Qf4 $146 {[%emt 0:00:59]} ({
Predecessor:} 14. Qh3 Rhg8 15. g4 Nfe7 16. Qe3 Rdf8 17. f4 f6 18. O-O Be8 19.
exf6 gxf6 20. Kh1 {½-½ (46) Arakhamia Grant,K (2364)-Rozentalis,E (2509)
Dundee 2017}) 14... Rhg8 {[%emt 0:02:23][%cal Yf7f6]} 15. g4 {[%emt 0:01:06]}
Nfe7 {[%emt 0:00:39]} (15... g5 16. Qf3 Nh4 17. Qh3 $14 (17. Qxf7 Rgf8 $11))
16. Qg5 {[%emt 0:01:16]} h6 {[%emt 0:01:28]} 17. Qe3 {[%emt 0:00:11]} Qa4 {
[%emt 0:00:34]} 18. Ra2 {[%emt 0:01:34]} Kb8 {[%emt 0:03:34]} 19. h4 {[%emt 0:
00:00][%cal Yh2h4,Yh4h5]} Ka8 {[%emt 0:01:56]} 20. Ng3 {[%emt 0:14:48]} ({
White should try} 20. Qh3 $11) 20... Rdf8 {[%emt 0:01:53]} (20... Qb5 $5 {
[%cal Rb5b1]} 21. O-O Qa4 $11) 21. h5 {[%emt 0:04:00]} Qa5 {[%emt 0:04:13]} 22.
a4 {[%emt 0:18:33]} f6 {[%emt 0:12:33]} 23. f4 {[%emt 0:00:00]} fxe5 {[%emt 0:
00:00]} (23... Qb6 $17 24. O-O fxe5) 24. dxe5 $11 {[%emt 0:03:34]} g5 {[%emt 0:
00:00]} (24... Rf7 $5 {[%cal Rg8f8]}) 25. hxg6 $1 {[%emt 0:00:34]} Nxg6 {
[%emt 0:00:11]} 26. Nh5 {[%emt 0:00:31]} d4 {[%emt 0:03:48]} (26... Qb6 $2 27.
Qxb6 axb6 28. Nf6 $18) 27. cxd4 {[%emt 0:01:16] [#]} (27. Qg3 $11) 27... c3 $1
$17 {[%emt 0:00:12]} (27... Qd5 28. Bf3 Qxd4 29. Nf6 Qxe3+ 30. Bxe3 Ngxe5 31.
fxe5 Nxe5 32. Nxg8 Nxf3+ 33. Ke2 Rxg8 34. Rxh6 $18) 28. Qxc3 {[%emt 0:05:05]}
Qd5 {[%emt 0:02:39][%csl Ya2,Yd4,Yh1]} 29. O-O {[%emt 0:00:06]} Qxa2 $2 {
[%emt 0:00:42]} (29... Nxd4 $19 30. Bc4 Qc6) 30. Bc4 $11 {[%emt 0:00:29]} Nxd4
{[%emt 0:14:08]} 31. Qxd4 {[%emt 0:02:44]} Qa3 {[%emt 0:02:36] Loses the game.}
32. Be3 $18 {[%emt 0:03:47][%csl Ge3][%cal Rd4a7] A strong pair of Bishops.} b6
{[%emt 0:05:05][%cal Yg6h4]} (32... Qxa4 $2 33. Ra1 Nxe5 34. Qxe5 $18) 33. Nf6
{[%emt 0:04:24]} Bc8 {[%emt 0:08:30]} 34. Nxg8 {[%emt 0:00:00] Really sharp!}
Rxg8 {[%emt 0:00:00]} 35. a5 {[%emt 0:01:14]} Qxa5 {[%emt 0:02:45]} 36. Ra1 {
[%emt 0:00:58]} Qc5 {[%emt 0:00:00] [#]} (36... Nxe5 $142 37. Qe4+ (37. Rxa5
Nf3+ 38. Kf2 Nxd4 $14) 37... Bb7 38. Rxa5 Nf3+ 39. Qxf3 Bxf3 40. Bxb6 Rxg4+ 41.
Kf2 Rxf4 42. Rxa7+ Kb8 43. Bc7+ Kxa7 44. Bxf4 Bd1) 37. Rxa7+ $3 {[%emt 0:01:16]
} Kb8 {[%emt 0:00:00] [#]} (37... Kxa7 38. Qa1+) 38. Qe4 $1 {[%emt 0:01:30]
[%csl Ga7][%cal Re4a8]} Qxe3+ {[%emt 0:00:00]} (38... Kxa7 39. Bxc5) 39. Qxe3 {
[%emt 0:00:04]} Kxa7 {[%emt 0:00:04]} 40. f5 {[%emt 0:00:42] Black must now
prevent Qa3+.} Nxe5 {[%emt 0:00:00]} 41. Qxe5 {[%emt 0:32:02]} Rxg4+ {[%emt 0:
28:43]} 42. Kf1 {[%emt 0:00:04]} Rxc4 {[%emt 0:00:00] Endgame KQ-KRB} 43. f6 {
[%emt 0:00:04]} Ba6 {[%emt 0:02:18]} 44. Ke1 {[%emt 0:00:04]} Rxc2 {[%emt 0:02:
36]} 45. f7 {[%emt 0:00:04]} Rc1+ {[%emt 0:00:07]} 46. Kd2 {[%emt 0:00:02]} Rf1
{[%emt 0:00:22]} 47. f8=Q {[%emt 0:00:11] Decoy} Rxf8 {[%emt 0:00:42]} 48. Qg7+
{[%emt 0:00:00]} Bb7 {[%emt 0:00:15]} 49. Qxf8 {[%emt 0:00:03]} Bd5 {[%emt 0:
00:26]} 50. Qxh6 {[%emt 0:00:05]} Ka6 {[%emt 0:00:14] White mates.} 51. Kc3 {
[%emt 0:00:02]} Kb5 {[%emt 0:00:15]} 52. Qf8 {[%emt 0:00:11]} Ka5 {[%emt 0:00:
17]} 53. Qe8 {[%emt 0:01:08]} Ka6 {[%emt 0:00:22]} 54. Kb4 {[%emt 0:00:04]} Ka7
{[%emt 0:00:00]} 55. Kb5 {[%emt 0:00:05]} Bb7 {[%emt 0:00:18]} 56. Qe7 {
[%emt 0:01:35]} e5 {[%emt 0:01:35]} 57. Qa3+ {[%emt 0:00:00]} Kb8 {[%emt 0:01:
09]} 58. Kxb6 {[%emt 0:00:00] Weighted Error Value: White=0.17 (very precise) /
Black=0.41} 1-0